Cogmind - Beta 17.1 @@@ ROGUE MODE // 2026.08.30 @ 16:13:09 Player: Blaj Result: Destroyed self with Subdweller Shrapnel Launcher Performance ------------- Evolutions (0) 0 Regions Visited (2) 400 Robots Destroyed (32) 160 Value Destroyed (785) 785 Prototype IDs (14) 280 Alien Tech Used (0) 0 Bonus (0) 0 TOTAL SCORE: 1625 Bonus ------- None Cogmind --------- Core Integrity 0/250 Matter 205/300 Energy 184/200 System Corruption 4% Temperature Cool (0) Movement Walking (200) Ox1 Location -10/Subcaves Parts ------- > --- POWER (1) -------- Subdweller Power Source > --- PROPULSION (2) --- Cargo Legs > --- UTILITY (2+2) ---- Huge Storage Unit > --- WEAPON (2) ------- Subdweller Laser Subdweller Shrapnel Launcher > --- INVENTORY (25) --- Subdweller Power Source Subdweller Monowheel Maxwheels Large Storage Unit Subdweller Optics Subdweller Machine Gun Subdweller Machine Gun Datajack Peak State ------------ > --- POWER ------------ Subdweller Power Source > --- PROPULSION ------- Cargo Legs > --- UTILITY ---------- Huge Storage Unit Light Armor Plating > --- WEAPON ----------- Subdweller Laser Subdweller Machine Gun > --- INVENTORY -------- Subdweller Power Source Light Treads Light Treads Spiked Treads Wheel Wheel Subdweller Monowheel Maxwheels Large Storage Unit Structural Scanner Subdweller Optics Seismic Detector ECM Suite Light Armor Plating Subdweller Beam Cannon Subdweller Machine Gun Subdweller Shrapnel Launcher Datajack Hammer Makeshift Axe Shrapnel Trap [Rating: 30] Favorites ----------- Power Light Ion Engine Engine Light Ion Engine Propulsion Wheel Treads Spiked Treads Leg Aluminum Leg Wheel Wheel Utility Huge Storage Unit Device Seismic Detector Storage Huge Storage Unit Processor Signal Interpreter Protection Light Armor Plating Weapon Assault Rifle Energy Gun Subdweller Laser Energy Cannon Subdweller Beam Cannon Ballistic Gun Assault Rifle Launcher Subdweller Shrapnel Launcher Impact Weapon Hammer Slashing Weapon Makeshift Axe Build | -11 -10 -10 ------- Run | Yrd Mat Sub Slots Evolved . | . . . Power . | . . . Propulsion . | . . . Utility . | . . . Weapon . | . . . Parts Attached 36 | 1 10 25 Power 2 | . . 2 Engine 2 | . . 2 Core . | . . . Reactor . | . . . Propulsion 10 | . 3 7 Treads 4 | . . 4 Leg 1 | . . 1 Wheel 5 | . 3 2 Hover . | . . . Flight . | . . . Utility 10 | 1 5 4 Device 3 | 1 . 2 Storage 2 | . 2 . Processor 1 | . 1 . Hackware . | . . . Protection 4 | . 2 2 Artifact . | . . . Weapon 14 | . 2 12 Energy Gun 7 | . . 7 Energy Cannon 1 | . . 1 Ballistic Gun 3 | . 1 2 Ballistic Cannon . | . . . Launcher 1 | . . 1 Special Weapon . | . . . Impact Weapon 1 | . 1 . Slashing Weapon 1 | . . 1 Piercing Weapon . | . . . Special Melee Weapon . | . . . Unidentified Prototypes . | . . . Corrupted Parts 1 | . . 1 System Corruption 1 | . . 1 Parts Lost 5 | . 1 4 Power 1 | . . 1 Propulsion 2 | . 1 1 Utility 1 | . . 1 Weapon 1 | . . 1 Highest Loss Streak 1 | . 1 1 To Critical Strikes 1 | . . 1 Average Backups 20 | 6 17 22 Power 1 | 1 1 1 Propulsion 6 | 4 7 6 Utility 6 | . 5 7 Weapon 5 | 1 4 5 Tool/Special . | . . . Unused Backups 15 | . 2 13 Power 1 | . . 1 Propulsion 6 | . . 6 Utility 4 | . 1 3 Weapon 3 | . 1 2 Tool/Special 1 | . . 1 Average Slot Usage (%) 96 | . 99 93 Engine 11 | . 14 9 Treads 7 | . . 13 Leg 1 | . 2 . Wheel 18 | . 24 13 Device 9 | . 7 10 Storage 13 | . 14 13 Protection 4 | . 6 3 Energy Gun 5 | . . 10 Energy Cannon 2 | . . 4 Ballistic Gun 15 | . 27 6 Slashing Weapon 3 | . . 5 Peak Build Rating 30 | 7 9 30 Average Rating 11 | 6 8 13 On Entrance 7 | 6 7 9 Avg Prop Armor Cover (%) 14 | . . 14 Naked Turns . | . . . Heaviest Build 97 | 12 90 97 Greatest Support 55 | 20 20 55 Greatest Overweight (x) 9 | . 4 9 Average Overweight (x) 4 | . 2 7 Largest Inventory Capacity 25 | 8 25 25 Average Capacity 22 | 8 19 25 Most Carried 25 | 6 25 25 Average Carried 21 | 6 17 23 Final Capacity 25 | 8 25 25 Final Carried 25 | 6 25 11 Class Distribution -------------------- 100% | Mutant Dominant Class ---------------- Mutant | -10/Materials Mutant | -10/Subcaves Resources | -11 -10 -10 ----------- Run | Yrd Mat Sub Matter Collected 1635 | 222 733 680 Remotely . | . . . Salvage Created 1001 | 28 545 428 Parts 74 | 3 47 24 Haulers Intercepted 2 | . 2 . Recyclers Shooed . | . . . Parts Field Recycled . | . . . Retrieved Matter . | . . . Parts Self-Destructed 13 | . . 13 Prevented . | . . . Parts Restored . | . . . Kills | -11 -10 -10 ------- Run | Yrd Mat Sub Combat Hostiles Destroyed 26 | . 14 12 Melee 1 | . . 1 Guns 20 | . 14 6 Cannons 1 | . . 1 AOE 2 | . . 2 Classes Destroyed 8 | 1 5 2 Builder 1 | . 1 . Tunneler 1 | 1 . . Hauler 2 | . 2 . Watcher 2 | . 2 . Swarmer 9 | . 6 3 Grunt 8 | . 8 . Sentry 1 | . . 1 Subdweller 8 | . . 8 Best Kill Streak 4 | 1 4 2 Combat Bots Only 4 | . 4 2 Max Kills in Single Turn 2 | 1 1 2 Gunslinging 1 | . . 1 Exploded 2 | . . 2 Melee 1 | . . 1 Uniques/NPCs Destroyed . | . . . Combat | -11 -10 -10 -------- Run | Yrd Mat Sub Hostile Shots Fired 113 | . 40 73 Missed 23 | . 8 15 Hits 90 | . 32 58 Projectile 90 | . 32 58 Critical Strikes 3 | . . 3 Damage Taken 1544 | . 311 1233 Core 266 | . 32 234 Absorbed by Shields . | . . . Core Remaining (%) 100 | 100 . . Volleys Fired 101 | 3 52 46 Largest 2 | 2 2 2 Hottest 90 | 40 40 90 Shots Fired 192 | 6 104 82 Gun 186 | 6 104 76 Cannon 4 | . . 4 Launcher 2 | . . 2 Special . | . . . Kinetic 134 | 6 104 24 Thermal 28 | . . 28 Explosive . | . . . Electromagnetic 30 | . . 30 Robot Hit Streak 23 | 3 8 23 Robot Miss Streak 3 | 2 3 1 Penetration Max . | . . . Secondary Targets 2 | . 1 1 Max Gunslinging Chain 1 | . 1 1 Shots Hit Robots 134 | 4 62 68 Core Hits 45 | 2 25 18 Critical Kills 1 | . 1 . Critical Parts Destroyed . | . . . Critical Strikes 3 | . 1 2 Destroy 2 | . 1 1 Corrupt 1 | . . 1 Melee Attacks 16 | . 3 13 Impact 3 | . 3 . Slashing 13 | . . 13 Piercing . | . . . Sneak Attacks . | . . . Combat Hostiles . | . . . Follow-up Attacks . | . . . Damage Inflicted 2134 | 41 789 1304 Guns 1771 | 41 789 941 Cannons 85 | . . 85 Explosions 76 | . . 76 Melee 202 | . . 202 Ramming . | . . . Kinetic 1275 | 41 789 445 Thermal 345 | . . 345 Explosive . | . . . Electromagnetic 312 | . . 312 Impact . | . . . Slashing 202 | . . 202 Piercing . | . . . Highest Corruption 4 | . 3 4 Average Corruption 3 | . 2 3 Corruption Purged . | . . . Corruption Blocked . | . . . Effects 53 | . 18 35 Message Errors 13 | . 5 8 Matter Fused 20 | . 4 16 Heat Flow Errors 8 | . 3 5 Energy Discharges 3 | . 3 . Parts Fused 1 | . 1 . Data Loss (minor) 3 | . 1 2 Misfires 4 | . 1 3 Alerts 1 | . . 1 Overload Shots . | . . . Overflow Damage 3 | . . 3 Projectiles . | . . . Explosions 3 | . . 3 Melee . | . . . Knockbacks . | . . . Impact . | . . . Kinetic . | . . . Secondary . | . . . Self-Inflicted Damage 54 | . . 54 Shots 1 | . . 1 Rammed . | . . . Targets Rammed . | . . . Kicked . | . . . Crushed . | . . . Highest Temperature 512 | . 234 512 Average Temperature 121 | . 62 180 Received Heat Transfer 861 | . 90 771 Effects 3 | . . 3 Shutdowns 1 | . . 1 Interference 2 | . . 2 Siege Activations . | . . . Martial Activations . | . . . Shielding Activations . | . . . Robots Disrupted . | . . . Combat Hostiles . | . . . Robots Corrupted 2 | . . 2 Combat Hostiles 2 | . . 2 Parts Fried 3 | . . 3 Impact Corruptions . | . . . Robots Melted . | . . . Combat Hostiles . | . . . Parts Melted . | . . . Heat Transferred 411 | . . 411 Parts Sabotaged . | . . . Parts Stolen . | . . . Parts Stripped . | . . . Power Chain Reactions . | . . . Alert | -11 -10 -10 ------- Run | Yrd Mat Sub Maximum Alert Level . | . . . Low Security (%) 100 | 100 100 . Level 1 . | . . . Level 2 . | . . . Level 3 . | . . . Level 4 . | . . . Level 5 . | . . . High Security . | . . . Max Security . | . . . Peak Influence 142 | 5 142 . Initial . | . . . Average 45 | 1 47 . Influence Increases 616 | 5 516 95 Destroy 0b10 Robot/C 360 | . 280 80 Destroy 0b10 Robot/NC 30 | 5 25 . Destroy Leader 88 | . 88 . Select Force Hacks 60 | . 60 . Disable Machine 15 | . 15 . Destroy Structure 3 | . 3 . Lose Combat Pursuer 60 | . 45 15 Influence Decreases 616 | 5 437 174 Entered New Map 39 | . . 39 Time Decay 567 | 5 427 135 Lost Part 10 | . 10 . Squads Dispatched 7 | . 7 . Investigation 4 | . 4 . Extermination . | . . . Reinforcement 3 | . 3 . Assault . | . . . Garrison . | . . . Intercept . | . . . Searches Triggered . | . . . Construction Impeded . | . . . Haulers Reinforced . | . . . Active Scanning Responses . | . . . Cargo Convoy Interrupts . | . . . Stealth | -11 -10 -10 --------- Run | Yrd Mat Sub Distress Signals 1 | . 1 . Communications Jammed . | . . . Distress Signals . | . . . Times Spotted 32 | . 21 11 Peak Tracking Total 4 | . 4 3 Tactical Retreats 4 | . 3 1 Traps | -11 -10 -10 ------- Run | Yrd Mat Sub Traps Triggered 4 | . 3 1 Indirectly . | . . . Trap Hack Attempts . | . . . Triggered . | . . . Disarmed . | . . . Reprogrammed . | . . . Reused . | . . . Traps Extracted . | . . . Installed . | . . . Triggered . | . . . Most Traps Carried 1 | . . 1 Machines | -11 -10 -10 ---------- Run | Yrd Mat Sub Machines Disabled 2 | . 1 1 Max in Single Turn 1 | . 1 1 Machines Repaired . | . . . Machines Dismantled . | . . . Machines Sabotaged . | . . . Overloaded Fab Kills . | . . . Hacking | -11 -10 -10 --------- Run | Yrd Mat Sub Machines Accessed 5 | . 2 3 Terminals . | . . . Fabricators . | . . . Repair Stations . | . . . Recycling Units 2 | . 2 . Scanalyzers . | . . . Garrison Access . | . . . Total Hacks 14 | . 2 12 Successful 14 | . 2 12 Failed . | . . . Catastrophic . | . . . Database Lockouts . | . . . Manual 2 | . 2 . Terminals . | . . . Fabricators . | . . . Repair Stations . | . . . Recycling Units 2 | . 2 . Scanalyzers . | . . . Garrison Access . | . . . Terminal Hacks 12 | . . 12 Record 9 | . . 9 Open Door 1 | . . 1 Proto ID Catalog 1 | . . 1 Release Object 1 | . . 1 Fabricator Hacks . | . . . Repair Station Hacks . | . . . Recycling Unit Hacks . | . . . Scanalyzer . | . . . Garrison Access Hacks . | . . . Unauthorized Hacks 2 | . 2 . Terminals . | . . . Fabricators . | . . . Repair Stations . | . . . Recycling Units 2 | . 2 . Tunnel 2 | . 2 . Scanalyzers . | . . . Garrison Access . | . . . Data Cores Recovered . | . . . Used . | . . . Hacking Detections . | . . . Full Trace Events . | . . . Feedback Events . | . . . Feedback Blocked . | . . . Robot Schematics Acquired . | . . . Robots Built . | . . . Authchips . | . . . Time . | . . . Total Robot Build Rating . | . . . Part Schematics Acquired . | . . . Parts Built . | . . . Authchips . | . . . Time . | . . . Total Part Build Rating . | . . . Part Studies Acquired . | . . . Parts Repaired . | . . . Time . | . . . Parts Recycled . | . . . Recycled Matter . | . . . Retrieved Matter . | . . . Retrieved Components . | . . . Parts Scanalyzed . | . . . Part Schematics Acquired . | . . . Parts Damaged . | . . . Bothacking | -11 -10 -10 ------------ Run | Yrd Mat Sub Used RIF Installer . | . . . Robots Hacked . | . . . Non-combat . | . . . Combat . | . . . Robot Hacks Applied . | . . . Relay Couplers Released . | . . . Fabnet Peak Effective % . | . . . Robots Rewired . | . . . Allies Hacked . | . . . Hacks Repelled . | . . . Allies | -11 -10 -10 -------- Run | Yrd Mat Sub Total Allies . | . . . Largest Group . | . . . Highest-Rated Group . | . . . Highest-Rated Ally . | . . . Total Orders . | . . . Ally Attacks . | . . . Total Damage . | . . . Kills . | . . . Allies Corrupted . | . . . Allies Melted . | . . . Intel | -11 -10 -10 ------- Run | Yrd Mat Sub Active Infowar (turns) 2162 | 25 779 1358 Optics 17 | . . 17 Structural 964 | . . 964 Seismic 1181 | 25 779 377 Robot Analysis Total . | . . . Derelict Logs Recovered 1 | . . 1 Drone Launches . | . . . Drone Recoveries . | . . . Exploration | -11 -10 -10 ------------- Run | Yrd Mat Sub Turns Passed 3349 | 57 1421 1871 Spaces Moved 1635 | 38 892 705 Core . | . . . Treads 4 | . . 4 Legs 159 | 38 104 17 Wheels 1472 | . 788 684 Hover . | . . . Flight . | . . . Fastest Speed 95 | 120 95 140 Average Speed 153 | 120 118 198 Slowest Speed 560 | 120 140 560 Overloaded Moves . | . . . Propulsion Burnouts . | . . . Robots Hopped . | . . . Potential Cave-ins . | . . . Cave-ins Triggered . | . . . Exploration Rate (%) 49 | 3 97 49 Regions Visited 2 Branch Regions 1 Pre-discovered Areas 2 | . 2 . Known Exits Taken . | . . . Unknown Exits Taken 2 | 1 1 . Scrap Searched 10 | . . 10 Spaces Dug 2 | . 1 1 Terrain Destroyed 21 | . 1 20 Melee 2 | . 1 1 Projectile . | . . . AOE 19 | . . 19 Terrain Rammed . | . . . Walls Destroyed . | . . . Machines Disabled . | . . . Actions | -11 -10 -10 --------- Run | Yrd Mat Sub Total 2259 | 43 1141 1075 Wait 353 | 2 146 205 Move 1633 | 37 891 705 Hop . | . . . Pick Up 36 | . 24 12 Fast Attach 7 | 1 1 5 Attach 8 | . 2 6 Detach 3 | . . 3 Swap 64 | . 17 47 Drop 38 | . 5 33 Fire 101 | 3 52 46 Melee 16 | . 3 13 Ram . | . . . Kick . | . . . Crush . | . . . Escape Stasis . | . . . Rewire . | . . . Trap . | . . . Miscellaneous . | . . . Route ------- -11/Scrapyard -10/Materials (discovered 6 exits: *Mat x3 / [*Min x2] / *Sub) -10/Subcaves (discovered 4 exits: [*Mat x2] / [Rec] / [*Scr]) History --------- Turn | Location | Event 1 | -11/Scrapyard | Discovered new exit (range 3) 58 | -11/Scrapyard | Entered Materials 59 | -10/Materials | Met a group of wandering Federalists 314 | -10/Materials | Build established: Mutant 332 | -10/Materials | Discovered new exit (range 12) 414 | -10/Materials | Discovered new exit (range 11) 480 | -10/Materials | Discovered new exit (range 3) 532 | -10/Materials | Identified exit to Materials 565 | -10/Materials | Discovered new exit (range 5) 638 | -10/Materials | Discovered exit to Materials (range 16) 727 | -10/Materials | Discovered new exit (range 10) 1479 | -10/Materials | Entered Subcaves 1480 | -10/Subcaves | Continued accompanying wandering Federalists (1) 1480 | -10/Subcaves | Approached by a straggling Scientist 1531 | -10/Subcaves | Scientist uncovered a shortcut to Scraptown 1532 | -10/Subcaves | Learned Materials emergency access door positions 1565 | -10/Subcaves | Ambushed by Subdwellers from Twisted Machinery 1678 | -10/Subcaves | Disturbed a concealed Subdweller 1949 | -10/Subcaves | Discovered new exit (range 9) 2186 | -10/Subcaves | Shifting Twisted Machinery released Sub. Shrapnel Launcher 2197 | -10/Subcaves | Shifting Twisted Machinery released Sub. Shrapnel Launcher 2593 | -10/Subcaves | Core integrity fell below 50% 2779 | -10/Subcaves | Discovered new exit (range 8) 2977 | -10/Subcaves | Visited 4L-MR0's lab 2998 | -10/Subcaves | Found Maxwheels 3180 | -10/Subcaves | Discovered new exit (range 7) 3199 | -10/Subcaves | A Subdweller sparked back to life 3199 | -10/Subcaves | A Subdweller sparked back to life 3199 | -10/Subcaves | A Subdweller sparked back to life 3243 | -10/Subcaves | Core integrity fell below 20% 3287 | -10/Subcaves | Found Cargo Legs 3288 | -10/Subcaves | Attached Cargo Legs, gained temporary slots: Utility x2 3350 | -10/Subcaves | Destroyed self with Subdweller Shrapnel Launcher Last Messages --------------- 03288_ Acquired 51 matter. 03290_ Acquired 32 matter. 03292_ Dropped Lgt. Treads. 03293_ Subatomizers dissect the Disposable Heat Sink. 03293_ Dropped Lgt. Treads. 03293_ Dropped Spk. Treads. 03294_ Dropped Wheel. 03295_ Dropped Lgt. Armor Plating. 03297_ Dropped Structural Scanner. 03298_ Dropped Seismic Detector. 03298_ Dropped ECM Suite. 03299_ Dropped Sub. Beam Cannon. 03299_ Dropped Shrapnel Trap. 03300_ Dropped Mak. Axe. 03300_ Dropped Hammer. 03313_ Acquired Seismic Detector. 03329_ System corrupted: Matter fused (-9). 03350_ Seismic Detector destroyed. 03350_ Destroyed Seismic Detector. Map ----- +----------------------------------------------------+ | ###????????????????????????????????????????? | | ###????????????????????????????????????????? | | ####??########?????????????????????????????? | | #############?????????????????????????????? | | ###### ############???????????????????? | | #### ###############????????????????? | | ## ## ## #####????????????????? | | ##????????????????? | | ##????????????????? | | # ## # # ###????????????????? | | ## ## #### ######?????????????????? | | ### ### #### ######????????#########? | | ### ### ### ###????????????#########? | | ## ## ######????????????## " "#? | | ## ##### #################### ##? | | ## ## # ###################" " ### | | # ## ### / #### ### | | # ###]!& #### " # | | ### ## ## #### !!=! ###"# | | ##### ### ######### * ![==! ### | | ?##### #######???##### ""&==### ## | | ???#### ######?#### ###""*#/# < ## | | ????#### #####???## ######### ## | | ?????#### ####### ######### ####### | | ??????##### #### ####????### ######## | | ???????##### ## ####@###??????##########????? | | ?????????###################????????########?????? | | ??????????#################??????????????????????? | | ?????????????????????????????????????????????????? | | ?????????????????????????????????????????????????? | | ?????????????????????????????????????????????????? | | ?????????????????????????????????????????????????? | | ?????????????????????????????????????????????????? | | ?????????????????????????????????????????????????? | | ?????????????????????????????????????????????????? | | ?????????????????????????????????????????????????? | | ?????????????????????????????????????????????????? | | ?????????????????????????????????????????????????? | | ?????????????????????????????????????????????????? | | ?????????????????????????????????????????????????? | | ?????????????????????????????????????????????????? | | | | | | | | | | | | | | | | | | | +----------------------------------------------------+ Best States ------------- Heat Dissipation 25 Energy Generation 15 Energy Capacity 250 Matter Stores 300 Matter Capacity 300 Sight Range 21 Terrain Scan Density 10 Armor Coverage 150 Evasion (%) 55 Recoil Reduction 2 Item Schematics ----------------- None Robot Schematics ------------------ None Fabricated ------------ Nothing Repaired ---------- Nothing Studied --------- None Alien Tech Used ----------------- None Achievements -------------- Nice Directions, Buddy Strength In Numbers Well Done Challenges ------------ None Game ------ Seed FortressPowerCharger Manual? 0 Play Time 00:42:15 Cumulative 317.6 hours Start 2026.08.30 @ 13:08:29 End 2026.08.30 @ 16:13:09 Sessions 2 Manual Loads 0 Difficulty Rogue Special Mode None Game No. 79 Rogue 79 Adventurer 0 Explorer 0 Win Type - Total 11 Types 5/1/2/0/1/1/0/1/0/0 Lore% 66 Gallery% 72 Achievement% 61 Wizard Run 0 Options --------- Layout 2 ASCII 0 Keyboard 1 Movement Vi Keybinds 0 Fullscreen 1 Font 24/Smallcaps Map View 50x44 Zoom Use 0% Tactical HUD 1 Map Filters NONE Filters NONE Steam 1 RUN: 127c9e10-07d9-4d9a-9513-5435f4b845e6